bitfinex-derivatives/quotes_SOLF0:USTF0_20251101
["timestamp","ask_amount","ask_price","bid_price","bid_amount"]
[1761974262991,2.76,186.59,186.57,9.90045759]
[1761974264493,2.76,186.59,186.58,9.90045759]
[1761974264894,4.58193114,186.6,186.58,9.90045759]
[1761974265096,2.76,186.59,186.58,9.90045759]
[1761974266198,2.76,186.59,186.54,13.27967194]
[1761974268496,2.76,186.59,186.58,9.96744453]
[1761974269100,2.76,186.59,186.57,9.96744453]
[1761974269400,4.70193114,186.58,186.57,9.96744453]
[1761974272203,2.88,186.58,186.57,9.96744453]
[1761974273199,2.88,186.58,186.55,9.96744453]
[1761974273801,2.88,186.57,186.55,9.96744453]
[1761974274005,2.88,186.57,186.54,9.96744453]
[1761974278198,2.88,186.57,186.55,9.96744453]
[1761974281911,2.88,186.57,186.56,9.96744453]
[1761974282210,2.88,186.57,186.55,9.96744453]
[1761974283208,2.88,186.57,186.56,9.96744453]
[1761974283709,7.33,186.58,186.56,9.96744453]
[1761974283911,7.33,186.58,186.53,13.27967194]
[1761974284111,7.33,186.58,186.55,2.84602843]
[1761974284409,6.71498059,186.58,186.55,2.84602843]
[1761974284814,6.71498059,186.58,186.55,16.12570037]
[1761974285814,6.71498059,186.58,186.56,13.27967194]
[1761974286413,6.3,186.63,186.57,3.92602843]
[1761974286715,6.3,186.63,186.62,2.84602843]
[1761974287116,6.3,186.63,186.62,16.14131003]
[1761974287515,17.05762,186.67,186.62,16.14131003]
[1761974288317,17.05762,186.67,186.65,2.84602843]
[1761974288518,17.05762,186.67,186.65,16.14131003]
[1761974292121,17.05762,186.67,186.65,2.84602843]
[1761974293123,17.05762,186.67,186.64,13.2952816]
[1761974296318,17.05762,186.67,186.65,16.14131003]
[1761974296721,17.05762,186.67,186.66,13.2952816]
[1761974297121,17.05762,186.67,186.65,16.14131003]
[1761974300124,17.05762,186.67,186.65,2.84602843]
[1761974308025,17.05762,186.67,186.64,13.2952816]
[1761974308731,2.8,186.66,186.63,13.2952816]
[1761974309031,19.85762,186.67,186.63,13.2952816]
[1761974310933,7.39,186.66,186.63,13.2952816]
[1761974311132,7.39,186.66,186.62,13.2952816]
[1761974313131,2.8,186.65,186.6,13.2952816]
[1761974313330,2.8,186.65,186.64,9.93878563]
[1761974317141,4.59,186.66,186.6,13.2952816]
[1761974317342,7.39,186.66,186.61,13.2952816]
[1761974317538,4.59,186.66,186.62,13.2952816]
[1761974319245,4.59,186.66,186.63,13.2952816]
[1761974320245,4.59,186.66,186.64,13.2952816]
[1761974321148,17.05762,186.67,186.61,35.55743642]
[1761974321343,17.05762,186.67,186.66,13.26712051]
[1761974323145,17.05762,186.67,186.62,16.62140799]
[1761974323846,9.23,186.66,186.62,16.62140799]
[1761974324342,9.23,186.66,186.63,16.62140799]
[1761974327453,9.23,186.66,186.64,16.62140799]
[1761974329157,9.23,186.66,186.65,16.62140799]
[1761974330454,17.05762,186.67,186.65,16.62140799]
[1761974330655,15.55762,186.67,186.66,16.62140799]
[1761974331255,1.61027828,186.68,186.66,16.67425585]
[1761974333554,1.61027828,186.68,186.67,16.67425585]
[1761974334152,4.43027828,186.68,186.66,16.67425585]
[1761974334861,1.61027828,186.68,186.66,16.67425585]
[1761974335455,1.61027828,186.68,186.67,16.67425585]
[1761974336357,1.61027828,186.68,186.66,16.67425585]
[1761974336558,1.61027828,186.68,186.67,2.84602843]
[1761974336860,7.87,186.72,186.67,2.84602843]
[1761974337053,7.87,186.72,186.7,16.66421872]
[1761974337355,7.87,186.72,186.69,16.66421872]
[1761974337760,7.87,186.72,186.7,2.84602843]
[1761974339660,7.35484007,186.73,186.7,2.84602843]
[1761974339965,7.35484007,186.73,186.7,19.51024715]
[1761974341364,2.82,186.76,186.7,19.51024715]
[1761974341563,2.82,186.76,186.75,13.31383024]
[1761974341766,9.47,186.77,186.75,13.31317558]
[1761974341966,6.65,186.77,186.75,13.31317558]
[1761974342663,2.82,186.83,186.76,2.84602843]
[1761974342859,2.82,186.83,186.8,13.29722308]
[1761974343064,4.65,186.84,186.81,13.29722308]
[1761974343355,2.82,186.83,186.82,1.81486771]
[1761974343560,2.82,186.83,186.81,1.81486771]
[1761974348063,4.65,186.84,186.81,1.81486771]
[1761974348263,4.65,186.84,186.83,1.81486771]
[1761974348467,2.82,186.84,186.83,1.81486771]
[1761974351866,2.82,186.84,186.83,11.7293181]
[1761974352866,2.82,186.84,186.83,1.81486771]
[1761974353476,2.82,186.84,186.83,6.60830249]
[1761974355068,3.9,186.84,186.83,3.65830249]
[1761974355270,2.82,186.83,186.8,11.7293181]
[1761974355472,2.82,186.83,186.82,4.95840186]
[1761974355770,2.82,186.83,186.8,1.81486771]
[1761974358471,2.82,186.83,186.82,1.81486771]
[1761974359469,6.53,186.87,186.82,1.81486771]
[1761974359675,2.69,186.86,186.85,1.81486771]
[1761974360064,2.69,186.86,186.83,1.81486771]
[1761974363378,2.69,186.86,186.81,11.7293181]
[1761974363571,2.69,186.86,186.81,9.91445039]
[1761974363769,2.69,186.86,186.81,1.81486771]
[1761974365177,2.69,186.86,186.81,11.7293181]
[1761974365976,2.69,186.86,186.83,1.81486771]
[1761974367883,2.69,186.86,186.83,0.00486771]
[1761974370377,2.69,186.86,186.83,1.81486771]
[1761974370775,2.69,186.86,186.81,9.91445039]
[1761974371068,2.69,186.86,186.82,1.81486771]
[1761974372680,2.69,186.86,186.84,1.81486771]
[1761974374979,2.69,186.86,186.84,11.7293181]
[1761974376084,2.69,186.86,186.84,1.81486771]
[1761974376379,2.69,186.86,186.82,11.7293181]
[1761974376586,2.69,186.86,186.83,9.91445039]
[1761974378284,2.69,186.86,186.84,9.91445039]
[1761974379985,2.69,186.86,186.85,1.81486771]
[1761974381080,2.69,186.86,186.85,11.7293181]
[1761974382590,2.69,186.86,186.85,9.91445039]
[1761974382790,2.69,186.86,186.85,11.7293181]
[1761974384089,2.69,186.86,186.85,1.81486771]
[1761974387286,7.19886338,186.86,186.85,1.81486771]
[1761974393195,2.89,186.85,186.83,1.81486771]
[1761974393395,7.39213292,186.84,186.83,1.81486771]
[1761974400191,2.89,186.83,186.8,13.29722308]
[1761974400402,2.89,186.83,186.82,1.81486771]
[1761974400597,7.39404297,186.83,186.82,1.81486771]
[1761974400797,2.89,186.82,186.8,1.81486771]
[1761974401601,2.89,186.82,186.81,10.01585741]
[1761974401794,2.89,186.81,186.78,1.81486771]
[1761974402499,2.89,186.79,186.76,1.81486771]
[1761974403100,2.89,186.77,186.76,1.81486771]
[1761974403303,2.89,186.77,186.74,13.29722308]
[1761974404196,2.89,186.77,186.73,13.29722308]
[1761974404699,2.89,186.77,186.75,2.83900829]
[1761974405002,2.89,186.86,186.76,13.29722308]
[1761974405197,15.17,186.87,186.84,6.66121608]
[1761974405198,7.38744582,186.85,186.84,6.66121608]
[1761974406709,7.38744582,186.85,186.84,3.71121608]
[1761974406895,7.38744582,186.85,186.84,0.00121608]
[1761974407094,7.38744582,186.85,186.77,16.16144045]
[1761974407095,2.89,186.84,186.8,9.99182412]
[1761974407405,2.89,186.82,186.8,9.99182412]
[1761974407697,7.38744582,186.81,186.8,9.99182412]
[1761974408205,2.89,186.8,186.79,9.99182412]
[1761974409093,2.89,186.8,186.77,2.83900829]
[1761974409394,2.89,186.8,186.79,9.99284312]
[1761974412094,2.89,186.8,186.77,2.83900829]
[1761974412607,2.89,186.8,186.79,9.98237382]
[1761974412908,2.89,186.8,186.77,2.83900829]
[1761974413407,2.89,186.79,186.77,2.83900829]
[1761974414005,8.95,186.87,186.78,4.10773016]
[1761974414202,4.49264882,186.86,186.8,9.9832768]
[1761974414507,4.49264882,186.85,186.81,9.9832768]
[1761974414708,4.49264882,186.84,186.81,9.9832768]
[1761974414907,4.49264882,186.83,186.8,9.9832768]
[1761974415107,4.49264882,186.82,186.79,9.9832768]
[1761974415304,4.49264882,186.81,186.78,9.9832768]
[1761974415503,1.8,186.82,186.79,9.9832768]
[1761974415695,4.49242092,186.81,186.79,9.9832768]
[1761974415900,2.84,186.81,186.79,9.9832768]
[1761974417213,2.84,186.81,186.8,9.9832768]
[1761974419409,2.84,186.8,186.78,9.9832768]
[1761974420912,1.8,186.82,186.8,2.68]
[1761974421213,1.8,186.82,186.81,2.83900829]
[1761974421622,4.53,186.82,186.81,2.83900829]
[1761974424221,4.53,186.82,186.81,12.8138042]
[1761974426917,1.8,186.82,186.81,12.8138042]
[1761974427828,1.8,186.82,186.81,15.4938042]
[1761974428614,1.8,186.82,186.81,5.51900829]
[1761974431424,2.73,186.85,186.81,5.51900829]
[1761974431425,2.73,186.85,186.81,9.6479901]
[1761974431622,2.73,186.83,186.82,14.10477185]
[1761974432232,2.73,186.83,186.82,4.12898181]
[1761974432426,2.73,186.83,186.82,14.10637709]
[1761974433233,2.73,186.83,186.82,4.12898181]
[1761974434333,7.14595321,186.83,186.82,4.12898181]
[1761974436527,4.41595321,186.83,186.82,6.80898181]
[1761974439539,7.84,186.86,186.83,2.68]
[1761974439737,7.84,186.86,186.85,5.51900829]
[1761974440033,12.25953803,186.86,186.85,9.6479901]
[1761974441236,4.41953803,186.86,186.85,9.6479901]
[1761974441535,247.83900829,186.99,186.86,2.68]
[1761974441536,2.73,186.9,186.86,2.68]
[1761974441738,2.73,186.9,186.89,6.65151704]
[1761974443637,2.73,186.9,186.89,10.773715]
[1761974445031,9.37,186.94,186.89,10.773715]
[1761974445228,2.73,186.93,186.9,10.773715]
[1761974445427,2.73,186.93,186.91,4.12219796]
[1761974445624,2.73,186.93,186.92,4.12219796]
[1761974448746,3.79,186.93,186.92,4.12219796]
[1761974448934,3.79,186.93,186.92,9.10350417]
[1761974449736,3.79,186.93,186.92,0.56874969]
[1761974453144,2.73,186.93,186.92,0.56874969]
[1761974453535,7.07896175,186.93,186.92,5.5500559]
[1761974463550,1.82,186.92,186.89,8.46610122]
[1761974463739,4.34896175,186.93,186.89,8.46610122]
[1761974463740,6.16896175,186.91,186.9,4.10360969]
[1761974465147,6.16896175,186.91,186.9,10.75512673]
[1761974471245,1.82,186.91,186.9,10.75512673]
[1761974471448,6.17128405,186.91,186.9,10.75512673]
[1761974472546,4.35128405,186.91,186.9,13.51512673]
[1761974473049,4.35128405,186.91,186.9,6.86360969]
[1761974473748,1.82,186.93,186.9,16.84088525]
[1761974473949,4.35168734,186.92,186.91,10.74848652]
[1761974474947,4.35168734,186.92,186.91,4.10499286]
[1761974475544,6.17168734,186.92,186.91,4.10499286]
[1761974477241,6.17168734,186.92,186.91,10.75392806]
[1761974480450,4.35168734,186.92,186.91,4.10499286]
[1761974480655,6.18168734,186.92,186.91,10.75911383]
[1761974483154,6.18168734,186.92,186.91,4.10499286]
[1761974485162,6.18168734,186.92,186.91,10.76832154]
[1761974485354,6.18168734,186.92,186.91,4.10499286]
[1761974487961,6.18168734,186.92,186.91,2.70274867]
[1761974488162,7.99627152,186.92,186.91,2.70274867]
[1761974492965,6.18168734,186.92,186.91,2.70274867]
[1761974498966,6.18168734,186.92,186.91,0.00274867]
[1761974500370,4.35168734,186.92,186.86,4.9999141]
[1761974500563,4.35168734,186.91,186.86,4.9999141]
[1761974500864,4.35168734,186.9,186.86,4.9999141]
[1761974501065,4.35168734,186.89,186.86,4.9999141]
[1761974501264,4.35168734,186.88,186.86,4.9999141]
[1761974501567,4.35168734,186.87,186.86,4.9999141]
[1761974506870,4.35168734,186.87,186.86,7.7499141]
[1761974510468,4.35168734,186.87,186.86,2.75]
[1761974510974,4.35168734,186.87,186.86,6.8850863]
[1761974512375,4.35168734,186.87,186.86,11.8850004]
[1761974520279,4.35168734,186.87,186.86,6.8850863]
[1761974520473,4.35168734,186.87,186.86,6.88742571]
[1761974520872,2.08,186.96,186.87,2.75]
[1761974521074,2.08,186.96,186.93,2.75]
[1761974521279,2.08,187.01,186.95,2.75]
[1761974521479,2.08,187.01,186.96,6.88742571]
[1761974521682,2.08,187.01,186.97,4.13742571]
[1761974521876,2.08,187.01,186.97,2.75]
[1761974522078,2.08,187.01,186.98,4.17165229]
[1761974522381,2.08,187.01,186.95,2.75]
[1761974522578,2.08,187.01,186.97,2.75]
[1761974522873,2.08,187.01,186.98,4.17098634]
[1761974523081,2.08,187.01,186.99,4.17098634]
[1761974523274,2.08,187.01,187.0,4.17098634]
[1761974524182,2.08,187.01,186.97,2.75]
[1761974524381,2.08,187.01,186.98,4.16683259]
[1761974524578,2.08,187.01,186.99,4.16683259]
[1761974524774,2.08,187.01,186.97,2.75]
[1761974524975,2.08,186.99,186.98,4.16705357]
[1761974528283,2.08,186.99,186.93,4.98005006]
[1761974528485,2.08,186.99,186.94,6.91592022]
[1761974528675,2.08,186.99,186.95,4.16592022]
[1761974528871,2.08,186.99,186.94,2.75]
[1761974528872,2.08,186.99,186.96,4.16592022]
[1761974529074,2.08,186.99,186.97,4.16592022]
[1761974529276,2.08,186.99,186.94,2.75]
[1761974529480,2.08,186.99,186.95,4.16563628]
[1761974529685,2.08,186.99,186.96,4.16563628]
[1761974529878,2.08,186.99,186.97,4.16563628]
[1761974530183,2.08,186.99,186.98,4.16563628]
[1761974531276,2.08,186.99,186.94,2.75]
[1761974531476,2.08,186.99,186.95,4.16514847]
[1761974531672,2.08,186.99,186.96,4.16514847]
[1761974531883,2.08,186.99,186.97,4.16514847]
[1761974532184,2.08,186.99,186.94,2.75]
[1761974532387,2.08,186.99,186.95,4.16504871]
[1761974532583,2.08,186.99,186.96,4.16504871]
[1761974532772,2.08,186.99,186.97,4.16504871]
[1761974532976,2.08,186.99,186.94,2.75]
[1761974533188,2.08,186.99,186.95,4.16484612]
[1761974533485,2.08,186.99,186.96,4.16484612]
[1761974533783,2.08,186.99,186.97,4.16484612]
[1761974533986,2.08,186.99,186.94,2.75]
[1761974534186,2.08,186.99,186.95,4.1939647]
[1761974534385,2.08,186.99,186.96,4.1939647]
[1761974534683,2.08,186.99,186.97,4.1939647]
[1761974534883,2.08,186.99,186.94,2.75]
[1761974535079,2.08,186.99,186.95,4.19551041]
[1761974535278,2.08,186.99,186.96,4.19551041]
[1761974535477,2.08,186.99,186.97,4.19551041]
[1761974535679,2.08,186.99,186.94,2.75]
[1761974535880,2.08,186.99,186.95,4.19552475]
[1761974536083,2.08,186.99,186.96,4.19552475]
[1761974536281,2.08,186.99,186.97,4.19552475]
[1761974536490,2.08,186.99,186.94,2.75]
[1761974536679,2.08,186.99,186.95,4.19514874]
[1761974536979,2.08,186.99,186.96,4.19514874]
[1761974537279,2.08,186.99,186.97,4.19514874]
[1761974537481,2.08,186.99,186.94,2.75]
[1761974537681,2.08,186.99,186.95,7.01429185]
[1761974537883,2.08,186.99,186.96,4.19429185]
[1761974538086,2.08,186.99,186.97,4.19429185]
[1761974538294,2.08,186.99,186.95,2.82]
[1761974538483,2.08,186.99,186.96,4.19363779]
[1761974538684,2.08,186.99,186.97,4.19363779]
[1761974538978,2.08,186.99,186.95,2.82]
[1761974539288,2.08,186.99,186.96,4.19363779]
[1761974539591,2.08,186.99,186.97,4.19363779]
[1761974539789,2.08,186.99,186.95,2.82]
[1761974539992,6.25780195,186.98,186.96,4.19339499]
[1761974540193,2.08,186.98,186.97,4.19339499]
[1761974540492,6.2577874,186.98,186.97,4.19339499]
[1761974541288,4.1777874,186.98,186.97,7.12339499]
[1761974544384,6.2577874,187.0,186.97,7.12339499]
[1761974544585,6.2577874,187.0,186.98,4.19227342]
[1761974544586,4.1777874,186.99,186.98,4.19227342]
[1761974547602,4.1777874,186.99,186.98,7.12227342]
[1761974548201,6.59461434,187.03,186.99,2.93]
[1761974548403,6.25560911,187.02,186.99,2.93]
[1761974548601,4.17560911,187.01,186.99,2.93]
[1761974548901,4.17560911,187.0,186.99,2.93]
[1761974549102,4.17560911,187.0,186.99,7.12202095]
[1761974551201,0.03371549,187.01,187.0,2.93]
[1761974551409,4.20963902,187.01,187.0,7.12202095]
[1761974554115,6.28963902,187.01,187.0,4.19202095]
[1761974554612,4.20963902,187.01,187.0,7.12202095]
[1761974555906,4.20963902,187.01,187.0,4.19202095]
[1761974556106,6.28963902,187.01,187.0,4.19202095]
[1761974558417,6.28963902,187.01,186.97,4.98005006]
[1761974558618,2.83461434,186.99,186.98,4.19818796]
[1761974558819,7.01053787,186.99,186.95,2.93]
[1761974559111,6.25592353,186.98,186.95,2.93]
[1761974559320,4.17592353,186.97,186.95,2.93]
[1761974559519,4.17592353,186.96,186.95,2.93]
[1761974560417,4.17592353,186.96,186.95,7.91005006]
[1761974562316,4.17592353,186.96,186.95,2.93]
[1761974566226,4.17592353,186.96,186.95,9.59332868]
[1761974570423,4.17592353,186.96,186.95,13.79154791]
[1761974571422,4.17592353,186.96,186.95,7.12821923]
[1761974571617,8.45,186.99,186.96,2.72]
[1761974571817,8.45,186.99,186.98,2.72]
[1761974572023,8.45,186.99,186.98,6.91821923]
[1761974577525,8.45,186.99,186.98,13.5710261]
[1761974581030,8.45,186.99,186.98,13.54774849]
[1761974581636,10.53,186.99,186.98,10.82774849]
[1761974581835,10.53,186.99,186.98,4.17494162]
[1761974582329,10.53,186.99,186.98,9.16368784]
[1761974584836,10.53,186.99,186.98,4.17494162]
[1761974585318,10.53,186.99,186.98,9.16368784]
[1761974585522,8.45,186.99,186.98,6.89494162]
[1761974591938,8.45,186.99,186.98,13.54278642]
[1761974604546,8.45,186.99,186.98,9.3678448]
[1761974604749,8.45,186.99,186.98,13.5555883]
[1761974607345,7.65751602,187.01,186.98,13.5555883]
[1761974607538,7.65751602,187.01,186.99,4.1877435]
[1761974607742,7.65751602,187.01,187.0,4.1877435]
[1761974611547,7.65751602,187.01,187.0,9.17148656]
[1761974612145,5.57751602,187.01,187.0,6.9877435]
[1761974612747,7.65751602,187.01,187.0,4.1877435]
[1761974614156,7.65751602,187.01,187.0,6.9877435]
[1761974617151,5.84371549,187.01,187.0,6.9877435]
[1761974617358,7.65751602,187.01,187.0,6.9877435]
[1761974617956,7.65751602,187.01,187.0,4.1877435]
[1761974621557,3.92751602,187.01,187.0,4.1877435]
[1761974622159,3.92751602,187.01,187.0,6.9877435]
[1761974624066,3.92751602,187.01,187.0,4.1877435]
[1761974625766,3.92751602,187.01,187.0,9.17557794]
[1761974629168,3.92751602,187.01,187.0,9.18086624]
[1761974629365,2.90751602,187.01,186.93,4.99298491]
[1761974629665,1.81380053,186.94,186.84,2.78]
[1761974629871,1.81380053,186.91,186.84,2.78]
[1761974630165,9.86996821,186.9,186.84,2.78]
[1761974630361,9.86996821,186.89,186.84,2.78]
[1761974630567,9.86996821,186.88,186.84,2.78]
[1761974630766,9.86996821,186.87,186.84,2.78]
[1761974630959,9.86996821,186.86,186.84,2.78]
[1761974631158,9.19113603,186.85,186.84,2.78]
[1761974633068,11.00493656,186.85,186.84,2.78]
[1761974636074,9.19113603,186.85,186.84,2.78]
[1761974638763,4.87208598,186.85,186.84,2.78]
[1761974643178,9.5972525,186.85,186.84,2.78]
[1761974647774,9.5972525,186.85,186.76,2.78]
[1761974647980,1.81380053,186.82,186.76,2.78]
[1761974648182,4.87208598,186.81,186.76,2.78]
[1761974648368,4.87208598,186.8,186.76,2.78]
[1761974648682,1.81380053,186.82,186.76,2.78]
[1761974648880,4.93155678,186.81,186.76,2.78]
[1761974649181,4.93155678,186.8,186.76,2.78]
[1761974649381,4.93155678,186.79,186.77,2.78]
[1761974649682,2.83961866,186.84,186.77,2.78]
[1761974649881,4.9307578,186.83,186.77,2.78]
[1761974650179,4.9307578,186.82,186.77,2.78]
[1761974650379,4.9307578,186.81,186.77,2.78]
[1761974650575,4.9307578,186.8,186.77,2.78]
[1761974650781,4.9307578,186.79,186.77,2.78]
[1761974650980,2.83961866,186.84,186.77,2.78]
[1761974651171,9.64855186,186.83,186.77,2.78]
[1761974651375,2.83961866,186.84,186.77,2.78]
[1761974651376,4.93012282,186.82,186.77,2.78]
[1761974651583,4.93012282,186.81,186.77,2.78]
[1761974651783,4.93012282,186.8,186.77,2.78]
[1761974651982,4.93012282,186.79,186.77,2.78]
[1761974652178,2.83961866,186.84,186.77,2.78]
[1761974652383,9.64766513,186.83,186.77,2.78]
[1761974652682,4.92931521,186.82,186.77,2.78]
[1761974652884,4.92931521,186.81,186.77,2.78]
[1761974653081,4.92931521,186.8,186.77,2.78]
[1761974653276,4.92931521,186.79,186.77,2.78]
[1761974653471,2.83961866,186.84,186.77,2.78]
[1761974653676,9.66753902,186.83,186.77,2.78]
[1761974653984,4.92913454,186.82,186.77,2.78]
[1761974654179,4.92913454,186.81,186.77,2.78]
[1761974654378,4.92913454,186.8,186.77,2.78]
[1761974654680,4.92913454,186.79,186.77,2.78]
[1761974654877,8.14,186.86,186.77,2.78]
[1761974655083,4.92897486,186.85,186.77,2.78]
[1761974655284,4.92897486,186.84,186.77,2.78]
[1761974655580,4.92897486,186.83,186.77,2.78]
[1761974655780,4.92897486,186.82,186.77,2.78]
[1761974655983,8.14,186.86,186.77,2.78]
[1761974656183,4.92847782,186.85,186.77,2.78]
[1761974656384,4.92847782,186.84,186.77,2.78]
[1761974656578,4.92847782,186.83,186.77,2.78]
[1761974656779,4.92847782,186.82,186.77,2.78]
[1761974656971,4.92847782,186.81,186.77,2.78]
[1761974657173,8.14,186.86,186.77,2.78]
[1761974657377,2.83961866,186.81,186.77,2.78]
[1761974657573,9.67049352,186.8,186.77,2.78]
[1761974657782,9.67086634,186.79,186.75,0.93095423]
[1761974658088,4.92979757,186.78,186.76,2.89]
[1761974658279,4.92979757,186.77,186.76,2.89]
[1761974658686,4.92979757,186.77,186.75,0.93095423]
[1761974658886,4.92979757,186.76,186.75,0.93095423]
[1761974659083,4.92979757,186.76,186.73,2.89]
[1761974659286,4.92979757,186.76,186.61,22.44125469]
[1761974659287,12.51048158,186.75,186.7,3.19776893]
[1761974659480,2.83961866,186.72,186.61,9.69198681]
[1761974659680,9.67153045,186.71,186.61,9.69198681]
[1761974659982,9.67153045,186.7,186.66,0.93215118]
[1761974660182,9.67153045,186.69,186.61,9.69198681]
[1761974660383,2.83961866,186.72,186.61,9.69198681]
[1761974660384,4.92979757,186.68,186.63,0.9323135]
[1761974660697,4.92979757,186.67,186.63,0.9323135]
[1761974660983,2.83961866,186.72,186.63,0.9323135]
[1761974661191,9.50685761,186.71,186.63,0.9323135]
[1761974661487,9.50685761,186.7,186.64,2.65]
[1761974661687,4.76814011,186.69,186.66,2.65]
[1761974661890,2.83961866,186.8,186.66,2.65]
[1761974662186,4.73550989,186.79,186.66,2.65]
[1761974662393,4.73550989,186.78,186.66,2.65]
[1761974662591,4.73550989,186.77,186.66,2.65]
[1761974662793,4.73550989,186.76,186.69,2.65]
[1761974663088,4.73550989,186.75,186.69,2.65]
[1761974663296,4.73550989,186.74,186.69,2.65]
[1761974663488,2.83961866,186.81,186.69,2.65]
[1761974663688,4.73424595,186.8,186.69,2.65]
[1761974663880,4.73424595,186.79,186.69,2.65]
[1761974664081,4.73424595,186.78,186.69,2.65]
[1761974664287,4.73424595,186.77,186.69,2.65]
[1761974664594,8.42424595,186.76,186.69,2.65]
[1761974664794,4.73424595,186.75,186.69,2.65]
[1761974665093,4.73424595,186.74,186.69,2.65]
[1761974665292,4.73424595,186.73,186.69,2.65]
[1761974665594,3.69,186.76,186.69,2.65]
[1761974665794,4.73482513,186.75,186.69,2.65]
[1761974666094,4.73482513,186.74,186.69,2.65]
[1761974666292,4.73482513,186.73,186.69,2.65]
[1761974666486,3.69,186.76,186.69,2.65]
[1761974666681,4.73549751,186.75,186.69,2.65]
[1761974666886,4.73549751,186.74,186.69,2.65]
[1761974667086,4.73549751,186.73,186.69,2.65]
[1761974667288,4.73549751,186.72,186.69,2.65]
[1761974667488,4.73549751,186.71,186.69,2.65]
[1761974667794,3.69,186.76,186.69,2.65]
[1761974667995,4.73680541,186.75,186.69,2.65]
[1761974668297,4.73680541,186.74,186.69,2.65]
[1761974668490,4.73680541,186.73,186.69,2.65]
[1761974668690,4.73680541,186.72,186.69,2.65]
[1761974668888,3.69,186.76,186.69,2.65]
[1761974669092,4.73767563,186.75,186.69,2.65]
[1761974669292,4.73767563,186.74,186.69,2.65]
[1761974669495,4.73767563,186.73,186.69,2.65]
[1761974669693,4.73767563,186.72,186.69,2.65]
[1761974669893,4.73767563,186.71,186.69,2.65]
[1761974670093,3.69,186.76,186.69,2.65]
[1761974670294,4.7418014,186.75,186.69,2.65]
[1761974670494,4.7418014,186.74,186.69,2.65]
[1761974670797,4.7418014,186.73,186.69,2.65]
[1761974671096,4.7418014,186.72,186.69,2.65]
[1761974671288,4.7418014,186.71,186.69,2.65]
[1761974671490,3.69,186.76,186.69,2.65]
[1761974671686,4.74294609,186.75,186.69,2.65]
[1761974671889,4.74294609,186.74,186.69,2.65]
[1761974672097,4.74294609,186.73,186.69,2.65]
[1761974672397,4.74294609,186.72,186.69,2.65]
[1761974672696,4.74294609,186.71,186.69,2.65]
[1761974673000,4.74294609,186.7,186.69,2.65]
[1761974673898,9.33491214,186.7,186.69,2.65]
[1761974677196,4.59196605,186.7,186.69,2.65]
[1761974681797,4.59196605,186.7,186.63,0.9323135]
[1761974681997,4.59196605,186.69,186.64,2.65]
[1761974682197,4.59196605,186.68,186.64,2.65]
[1761974682398,12.93,186.71,186.64,2.65]
[1761974682604,4.59536637,186.7,186.64,2.65]
[1761974682803,4.59536637,186.69,186.64,2.65]
[1761974682999,4.59536637,186.68,186.64,2.65]
[1761974683205,12.93,186.71,186.64,2.65]
[1761974683404,4.59549345,186.7,186.64,2.65]
[1761974683599,4.59549345,186.69,186.64,2.65]
[1761974683801,4.59549345,186.68,186.64,2.65]
[1761974684109,12.93,186.71,186.64,2.65]
[1761974684302,4.59577445,186.7,186.64,2.65]
[1761974684600,4.59577445,186.69,186.64,2.65]
[1761974684803,4.59577445,186.68,186.64,2.65]
[1761974685004,4.59576882,186.67,186.64,2.65]
[1761974685204,12.93,186.71,186.64,2.65]
[1761974685407,9.10251347,186.7,186.64,2.65]
[1761974685604,4.59576012,186.69,186.64,2.65]
[1761974685797,4.59576012,186.68,186.64,2.65]
[1761974685998,4.59576012,186.67,186.64,2.65]
[1761974686198,12.93,186.71,186.64,2.65]
[1761974686398,9.10256602,186.7,186.64,2.65]
[1761974686706,4.59578665,186.69,186.64,2.65]